bitfinex/quotes_ETHUSD_20250823
["timestamp","ask_amount","ask_price","bid_price","bid_amount"]
[1755941174703,0.02,4730.8,4730.2,0.4309]
[1755941175145,0.3104,4730.3,4730.2,0.4309]
[1755941175348,3.0,4730.2,4728.3,2.65450919]
[1755941175644,3.0,4730.2,4727.5,0.004]
[1755941175645,0.3073,4728.4,4728.2,0.4309]
[1755941175820,0.4296,4728.3,4727.5,0.004]
[1755941176025,0.3085,4728.2,4727.5,0.004]
[1755941176306,0.7369,4728.2,4727.5,0.004]
[1755941178234,0.7369,4728.2,4727.7,0.004]
[1755941179308,4.53100293,4728.2,4727.7,0.004]
[1755941179548,3.7369,4728.2,4727.7,0.004]
[1755941180404,0.7369,4728.2,4727.7,0.004]
[1755941181807,0.8425,4728.2,4727.7,0.004]
[1755941185036,1.5025,4728.2,4727.7,0.004]
[1755941185429,3.61746975,4728.2,4727.7,0.004]
[1755941185733,1.5025,4728.2,4727.7,0.004]
[1755941187338,1.65732769,4728.2,4727.7,0.004]
[1755941187904,1.74208269,4728.2,4727.7,0.004]
[1755941191338,1.5025,4728.2,4727.7,0.004]
[1755941191840,4.5025,4728.2,4727.7,0.004]
[1755941193723,0.4141,4728.2,4727.7,0.004]
[1755941199850,0.1056,4728.2,4727.7,0.004]
[1755941200049,0.1056,4728.2,4727.7,0.4355]
[1755941200250,0.1056,4728.2,4728.1,0.3023]
[1755941200552,0.1056,4728.2,4728.1,0.7338]
[1755941200960,0.1056,4728.2,4728.1,0.004]
[1755941201860,0.1056,4728.2,4728.1,0.3023]
[1755941202065,0.1056,4728.2,4728.1,0.7338]
[1755941203366,0.1056,4728.2,4728.1,0.3023]
[1755941203557,0.1056,4728.2,4728.1,0.004]
[1755941203930,0.1099,4728.2,4728.1,0.004]
[1755941208970,0.1056,4728.2,4728.1,0.004]
[1755941209178,0.1056,4728.2,4728.1,0.7649]
[1755941212640,0.1056,4728.2,4728.1,0.004]
[1755941212841,0.3864,4728.2,4728.1,0.004]
[1755941213489,0.835,4728.2,4728.1,0.004]
[1755941214448,0.3864,4728.2,4728.1,0.004]
[1755941215050,0.835,4728.2,4728.1,0.004]
[1755941215548,1.495,4728.2,4728.1,0.004]
[1755941216253,1.0464,4728.2,4728.1,0.004]
[1755941216769,1.495,4728.2,4728.1,0.004]
[1755941218279,1.0464,4728.2,4728.1,0.004]
[1755941218951,0.2808,4728.2,4728.1,0.004]
[1755941219275,0.1056,4728.2,4728.1,0.004]
[1755941219696,0.1056,4728.2,4728.1,0.7649]
[1755941220111,0.1056,4728.2,4728.1,0.004]
[1755941220730,0.1056,4728.2,4728.1,0.7649]
[1755941221387,0.8424,4728.2,4728.1,0.004]
[1755941222332,0.3937,4728.2,4728.1,0.004]
[1755941223386,0.1056,4728.2,4728.1,0.3032]
[1755941223612,0.1056,4728.2,4728.1,0.004]
[1755941224409,0.1056,4728.2,4728.1,0.7649]
[1755941225519,0.1056,4728.5,4728.1,0.7649]
[1755941225742,0.16359715,4729.9,4728.1,0.3032]
[1755941225743,0.001,4728.9,4728.1,0.3032]
[1755941225891,0.1056,4728.2,4728.1,0.3032]
[1755941226090,0.1056,4728.2,4728.1,0.7649]
[1755941228094,0.001,4728.9,4728.1,0.7649]
[1755941228329,0.001,4728.9,4728.1,0.3032]
[1755941228535,0.001,4728.9,4728.2,0.4617]
[1755941228700,0.001,4728.9,4728.8,0.2992]
[1755941229025,0.001,4728.9,4728.1,0.004]
[1755941229226,0.1056,4728.3,4728.1,0.4657]
[1755941229412,0.1056,4728.3,4728.2,0.2992]
[1755941229613,0.1056,4728.3,4728.2,0.7609]
[1755941230016,0.1056,4728.3,4728.1,0.004]
[1755941231224,0.0045,4728.2,4728.1,0.004]
[1755941237831,0.1056,4728.3,4728.1,0.004]
[1755941242117,0.7368,4728.2,4728.1,0.004]
[1755941242315,13.39069947,4728.2,4728.1,0.004]
[1755941242731,13.84731684,4728.2,4728.1,0.004]
[1755941243509,13.39069947,4728.2,4728.1,0.004]
[1755941243705,13.84726035,4728.2,4728.1,0.004]
[1755941244004,13.93201235,4728.2,4728.1,0.004]
[1755941244539,7.16806109,4728.2,4728.1,0.004]
[1755941244741,9.28303084,4728.2,4728.1,0.004]
[1755941244941,9.48119961,4728.2,4728.1,0.004]
[1755941245146,9.60011343,4728.2,4728.1,0.004]
[1755941245343,10.05168343,4728.2,4728.1,0.004]
[1755941246355,9.48119961,4728.2,4728.1,0.004]
[1755941247163,10.05168343,4728.2,4728.1,0.004]
[1755941247361,9.48119961,4728.2,4728.1,0.004]
[1755941249862,6.92472986,4728.2,4728.1,0.004]
[1755941250062,3.94216109,4728.2,4728.1,0.004]
[1755941250366,3.485652,4728.2,4728.1,0.004]
[1755941250663,4.145652,4728.2,4728.1,0.004]
[1755941251931,4.587252,4728.2,4728.1,0.004]
[1755941252466,4.145652,4728.2,4728.1,0.004]
[1755941258899,3.850352,4728.2,4728.1,0.004]
[1755941259371,4.145652,4728.2,4728.1,0.004]
[1755941259705,4.60180409,4728.2,4728.1,0.004]
[1755941260231,6.375652,4728.2,4728.1,0.004]
[1755941260368,7.27330816,4728.2,4728.1,0.004]
[1755941260888,9.38827791,4728.2,4728.1,0.004]
[1755941261974,7.27330816,4728.2,4728.1,0.004]
[1755941262602,6.83180816,4728.2,4728.1,0.004]
[1755941262972,6.53650816,4728.2,4728.1,0.004]
[1755941263472,6.83180816,4728.2,4728.1,0.004]
[1755941264105,6.53650816,4728.2,4728.1,0.004]
[1755941264406,15.53021133,4728.2,4728.1,0.004]
[1755941266995,3.64650816,4728.2,4728.1,0.3183]
[1755941267198,3.64650816,4728.2,4728.1,0.748]
[1755941267615,4.30650816,4728.2,4728.1,0.748]
[1755941267906,0.190352,4728.2,4728.1,0.748]
[1755941271240,0.1056,4728.2,4728.1,0.748]
[1755941271778,0.001,4728.9,4728.1,0.748]
[1755941272013,0.1056,4728.5,4728.2,0.4359]
[1755941272211,0.1056,4728.5,4728.4,0.302]
[1755941272919,0.1056,4728.5,4728.4,0.7379]
[1755941281986,0.1056,4728.5,4728.1,0.004]
[1755941282191,0.1056,4728.2,4728.1,0.004]
[1755941282397,0.372,4728.2,4728.1,0.004]
[1755941283124,0.456739,4728.2,4728.1,0.004]
[1755941283727,0.928939,4728.2,4728.1,0.004]
[1755941284223,0.456739,4728.2,4728.1,0.004]
[1755941285893,0.190339,4728.2,4728.1,0.306]
[1755941287629,0.190339,4728.2,4728.1,0.004]
[1755941290011,0.194939,4728.2,4728.1,0.004]
[1755941290721,0.190339,4728.2,4728.1,0.004]
[1755941292199,0.199639,4728.2,4728.1,0.004]
[1755941293126,0.671839,4728.2,4728.1,0.004]
[1755941293832,1.331839,4728.2,4728.1,0.004]
[1755941295343,0.190339,4728.2,4728.1,0.004]
[1755941295708,0.456739,4728.2,4728.1,0.004]
[1755941296133,0.190339,4728.2,4728.1,0.004]
[1755941298155,0.452239,4728.2,4728.1,0.004]
[1755941298645,1.570739,4728.2,4728.1,0.004]
[1755941299761,1.112239,4728.2,4728.1,0.004]
[1755941301952,0.190339,4728.2,4728.1,0.2936]
[1755941302124,0.190339,4728.2,4728.1,0.7339]
[1755941305881,0.190339,4728.2,4728.1,0.2936]
[1755941306018,0.458739,4728.2,4728.1,0.004]
[1755941306634,0.190339,4728.2,4728.1,0.004]
[1755941307156,0.460639,4728.2,4728.1,0.004]
[1755941307344,0.190339,4728.2,4728.1,0.2936]
[1755941308628,0.001,4728.9,4728.1,0.7339]
[1755941309150,0.001,4728.9,4728.2,0.4403]
[1755941309327,0.001,4728.9,4728.8,0.2896]
[1755941310063,0.001,4728.9,4728.8,0.7299]
[1755941315534,0.001,4728.9,4728.8,0.7499]
[1755941320745,0.001,4728.9,4728.8,0.7299]
[1755941323479,0.001,4728.9,4728.8,0.2896]
[1755941323648,0.001,4728.9,4728.8,0.7299]
[1755941324377,0.001,4728.9,4728.8,0.7339]
[1755941330665,0.001,4728.9,4728.8,0.8395]
[1755941330875,0.001,4728.9,4728.8,1.22345]
[1755941331080,0.001,4728.9,4728.8,0.9461]
[1755941332597,0.001,4728.9,4728.8,13.59980317]
[1755941337404,0.001,4728.9,4728.8,4.6061]
[1755941339475,0.001,4728.9,4728.8,13.59980317]
[1755941345789,0.001,4728.9,4728.8,13.15950317]
[1755941346113,0.001,4728.9,4728.8,15.09125205]
[1755941346618,0.001,4728.9,4728.8,15.11125205]
[1755941348517,0.001,4728.9,4728.8,14.64635205]
[1755941349221,0.001,4728.9,4728.8,5.36304888]
[1755941349391,0.001,4728.9,4728.8,3.8962]
[1755941349920,0.3028,4728.9,4728.8,3.2362]
[1755941351718,0.3028,4728.9,4728.8,3.2162]
[1755941352498,0.001,4728.9,4728.8,3.2162]
[1755941352703,0.001,4728.9,4728.8,3.53782]
[1755941353529,0.3028,4728.9,4728.8,3.53782]
[1755941356225,0.001,4728.9,4728.8,3.53782]
[1755941357807,0.001,4728.9,4728.8,3.84722]
[1755941359932,0.001,4728.9,4728.8,3.53782]
[1755941361533,0.001,4728.9,4728.8,7.75082]
[1755941364126,0.001,4728.9,4728.8,8.03632]
[1755941364509,0.001,4728.9,4728.8,7.75082]
[1755941365122,0.001,4728.9,4728.8,8.03632]
[1755941366203,0.001,4728.9,4728.8,10.67280559]
[1755941366828,0.001,4728.9,4728.8,6.45980559]
[1755941368440,0.001,4728.9,4728.8,4.95082]
[1755941368939,0.001,4728.9,4728.8,9.16382]
[1755941369776,0.001,4728.9,4728.8,9.05822]
[1755941369961,0.001,4728.9,4728.8,9.16382]
[1755941372683,0.001,4728.9,4728.6,0.79430296]
[1755941372684,0.7378,4728.9,4728.6,0.79430296]
[1755941372890,0.7378,4728.9,4728.1,0.0035]
[1755941372891,0.66,4728.7,4728.1,0.0035]
[1755941373034,0.66,4728.7,4727.8,0.024]
[1755941373035,3.0,4728.0,4727.8,0.024]
[1755941373236,0.66,4727.6,4724.8,1.54133649]
[1755941373433,3.0,4727.1,4725.1,0.1056]
[1755941373654,0.4219,4725.9,4725.1,0.1056]
[1755941374165,0.759,4725.9,4725.1,0.1056]
[1755941374371,0.4219,4725.9,4725.1,0.1056]
[1755941374578,0.4219,4725.9,4724.8,0.02]
[1755941374579,0.759,4725.9,4724.8,0.02]
[1755941376935,0.843778,4725.9,4724.8,0.02]
[1755941381179,0.506678,4725.9,4725.1,0.4675]
[1755941381749,0.4219,4725.9,4725.1,0.4675]
[1755941383591,0.1056,4725.9,4725.1,0.4675]
[1755941386370,0.4219,4725.9,4725.1,0.4675]
[1755941386571,0.4219,4725.9,4725.0,0.1056]
[1755941386984,0.759,4725.9,4725.0,0.1056]
[1755941387290,0.4219,4725.9,4725.0,0.5731]
[1755941391581,0.4219,4725.9,4725.3,0.004]
[1755941391786,0.4219,4725.9,4725.3,0.4356]
[1755941391987,0.1056,4725.9,4725.3,0.4356]
[1755941393693,0.109,4725.9,4725.3,0.4356]
[1755941398693,0.109,4725.9,4725.3,0.004]
[1755941399374,0.109,4725.9,4725.4,0.4316]
[1755941399375,0.1056,4725.9,4725.4,0.4316]
[1755941400198,0.30208081,4725.9,4725.8,0.3324]
[1755941400400,0.19648081,4725.9,4725.8,0.024]
[1755941400598,0.84798081,4725.9,4725.8,0.024]
[1755941400811,1.16235788,4725.9,4725.8,0.024]
[1755941401370,1.61299366,4725.9,4725.8,0.024]
[1755941401575,5.74142647,4725.9,4725.8,0.024]
[1755941401810,5.74142647,4725.9,4725.3,0.004]
[1755941401811,2.24896166,4725.9,4725.3,0.004]
[1755941401993,0.1056,4725.4,4725.3,0.004]
[1755941402304,1.28849366,4725.4,4724.8,0.024]
[1755941402603,0.86290547,4724.9,4724.8,0.024]
[1755941402769,1.82439913,4724.9,4724.8,0.024]
[1755941403605,1.51901157,4724.9,4724.8,0.024]
[1755941403994,1.73921157,4724.9,4724.8,0.024]
[1755941404306,0.97291659,4724.9,4724.8,0.024]
[1755941404471,1.34610444,4724.9,4724.8,0.024]
[1755941404671,1.54390187,4724.9,4724.8,0.024]
[1755941405404,1.0928781,4724.9,4724.8,0.024]
[1755941405812,1.5251781,4724.9,4724.8,0.024]
[1755941406391,1.20873578,4724.9,4724.8,0.024]
[1755941407022,1.21345628,4724.9,4724.8,0.024]
[1755941407446,0.78115628,4724.9,4724.8,0.024]
[1755941409390,1.35010607,4724.9,4724.8,0.024]
[1755941411522,1.43490407,4724.9,4724.8,0.024]
[1755941412725,1.29895428,4724.9,4724.8,0.024]
[1755941412888,1.49637819,4724.9,4724.8,0.024]
[1755941413289,2.05701943,4724.9,4724.8,0.024]
[1755941413515,1.4963503,4724.9,4724.8,0.024]
[1755941414194,1.49634489,4724.9,4724.8,0.024]
[1755941414517,1.29895428,4724.9,4724.8,0.024]
[1755941414934,0.86595428,4724.9,4724.8,0.024]
[1755941415223,0.64575428,4724.9,4724.8,0.764]
[1755941415427,0.64575428,4724.9,4724.8,0.3324]
[1755941415587,0.64575428,4724.9,4724.8,0.024]
[1755941415990,0.64575428,4724.9,4724.8,0.764]
[1755941415991,0.56095628,4724.9,4724.8,0.764]
[1755941416724,0.1056,4724.9,4724.8,0.764]
[1755941417029,0.001,4725.9,4724.8,0.764]
[1755941417030,0.45535628,4725.4,4724.8,0.764]
[1755941417319,0.56845238,4725.7,4725.0,0.1056]
[1755941417320,0.1056,4725.7,4725.0,0.1056]
[1755941417497,0.1056,4725.7,4725.6,0.3084]
[1755941417702,0.1056,4725.7,4725.6,0.74]
[1755941418600,0.001,4725.9,4725.6,0.74]
[1755941418805,0.1066,4725.9,4725.6,0.3084]
[1755941419028,0.1066,4725.9,4725.7,0.4441]
[1755941419216,0.1066,4725.9,4725.8,0.2851]
[1755941419416,0.1066,4725.9,4725.8,0.7292]
[1755941421494,0.1066,4725.9,4725.8,0.2851]
[1755941422915,0.1066,4725.9,4725.8,0.7292]
[1755941424907,0.001,4725.9,4725.8,0.7292]
[1755941428151,0.001,4725.9,4725.8,1.3892]
[1755941428450,0.001,4725.9,4725.8,1.53868]
[1755941429585,0.001,4725.9,4725.8,1.64428]
[1755941431748,0.001,4725.9,4725.8,4.64428]
[1755941434566,0.001,4726.3,4725.9,0.66]
[1755941434866,0.001,4726.3,4726.2,0.9451]
[1755941435178,0.001,4726.3,4726.2,1.770718]
[1755941435468,0.001,4726.3,4726.2,2.214818]
[1755941436069,0.021,4726.8,4726.3,3.66]
[1755941436267,0.02,4728.8,4726.8,3.66]
[1755941436569,0.02,4728.8,4726.8,3.9451]
[1755941436745,0.02,4728.8,4726.8,6.531078]
[1755941436944,0.02,4728.8,4726.8,6.615782]
[1755941437266,0.02,4728.8,4726.8,10.828782]
[1755941437469,0.02,4728.8,4726.8,8.7078]
[1755941437875,0.02,4728.8,4726.8,8.792499]
[1755941438872,0.4547,4728.8,4726.8,8.792499]
[1755941439064,0.4347,4728.5,4726.8,8.7078]
[1755941439390,0.02,4728.8,4726.8,8.7078]
[1755941439391,0.02,4728.8,4726.8,8.6022]
[1755941439555,0.02,4728.8,4727.0,0.66]
[1755941439887,0.02,4728.8,4727.7,0.9451]
[1755941440252,0.02,4728.8,4727.7,1.3892]
[1755941440455,0.02,4728.8,4727.7,8.6022]
[1755941440844,0.02,4728.8,4727.7,10.126883]
[1755941441042,0.02,4728.8,4727.7,12.268761]
[1755941441276,0.02,4728.8,4727.8,3.66]
[1755941441458,0.02,4728.8,4728.7,0.9451]
[1755941441978,0.02,4728.8,4728.7,1.3892]
[1755941444894,0.02,4728.8,4728.7,1.55088582]
[1755941445090,0.02,4728.8,4728.7,1.7144422]
[1755941449406,0.02,4728.8,4728.7,1.8200422]
[1755941450504,0.001,4729.4,4728.8,0.66]
[1755941450669,0.001,4729.4,4729.3,1.0725]
[1755941451809,0.001,4729.4,4729.3,0.7656]
[1755941452197,0.001,4729.4,4729.3,1.5289]
[1755941453195,0.2045,4729.4,4729.3,0.7656]
[1755941453783,0.001,4729.4,4729.3,0.7656]
[1755941453997,0.2069,4729.4,4729.3,0.7656]
[1755941454709,0.001,4729.4,4729.3,0.7656]
[1755941454905,0.001,4729.4,4729.3,0.8878]
[1755941455503,0.001,4729.4,4729.3,1.6511]
[1755941456905,0.001,4729.4,4729.3,1.75729001]
[1755941457505,0.001,4729.4,4729.3,1.6511]
[1755941458302,0.001,4729.4,4729.3,0.8878]
[1755941460217,0.001,4729.4,4729.3,1.1947]
[1755941460415,0.001,4729.4,4729.3,1.6511]
[1755941460621,0.001,4729.4,4729.3,8.8641]
[1755941461390,0.041,4729.8,4729.4,3.66]
[1755941461590,0.041,4729.8,4729.7,1.0725]
[1755941461784,0.02,4730.8,4729.8,3.66]
[1755941461999,0.02,4730.8,4729.8,8.3294]
[1755941462302,0.02,4730.8,4730.7,0.7656]
[1755941462500,0.2234,4730.8,4730.7,0.7656]
[1755941462820,0.6747,4730.8,4730.7,0.1056]
[1755941463189,0.2234,4730.8,4730.7,0.1056]
[1755941464319,0.6747,4730.8,4730.7,0.1056]
[1755941466389,0.6747,4730.8,4729.8,0.02]
[1755941466589,0.4513,4730.7,4729.8,0.2361878]
[1755941466811,0.4713,4730.8,4729.8,0.2361878]
[1755941467025,0.4713,4730.8,4730.0,3.0]
[1755941467222,0.4713,4730.8,4730.1,0.66]
[1755941467528,0.4713,4730.8,4730.7,0.1056]
[1755941467728,0.6748,4730.8,4730.7,0.1056]
[1755941468028,0.6748,4730.8,4730.4,0.1056]
[1755941468226,0.4488,4730.7,4730.4,0.1056]
[1755941468430,0.206,4730.5,4730.4,0.1056]
[1755941468649,0.02,4730.8,4730.7,0.66]
[1755941468826,0.2235,4730.8,4730.7,0.66]
[1755941469126,0.02,4730.8,4730.7,0.3069]
[1755941469314,0.02,4730.8,4730.7,1.4233]
[1755941469627,0.02,4730.8,4730.7,1.56563]
[1755941470734,0.02,4730.8,4730.7,1.10923]
[1755941470938,0.02,4730.8,4730.7,0.80233]
[1755941471152,0.02,4730.8,4730.7,0.66]
[1755941471336,0.02,4730.8,4730.7,0.9669]
[1755941471937,0.02,4730.8,4730.7,0.66]
[1755941472142,0.2235,4730.8,4730.7,0.66]
[1755941475617,0.2245,4730.8,4730.7,0.66]
[1755941476854,0.6758,4730.8,4730.7,0.66]
[1755941477247,0.2245,4730.8,4730.7,0.66]
[1755941478718,0.2245,4730.8,4730.7,0.7656]
[1755941478919,0.021,4730.8,4730.7,0.7656]
[1755941479457,0.021,4730.8,4730.7,1.5053]
[1755941479623,0.021,4730.8,4730.7,1.65583]
[1755941479952,0.021,4730.8,4730.7,0.55283]
[1755941480151,0.021,4730.8,4730.7,0.4023]
[1755941480328,0.021,4730.8,4730.7,0.8453]
[1755941481625,0.021,4730.8,4730.7,0.1056]
[1755941481626,0.3318,4730.8,4730.7,0.1056]
[1755941482752,0.3318,4730.8,4730.7,4.3186]
[1755941482951,0.021,4730.8,4730.7,5.0583]
[1755941483151,0.021,4730.8,4730.7,5.56413]
[1755941483682,0.021,4730.8,4730.7,5.12113]
[1755941484734,0.021,4730.8,4730.7,5.56413]
[1755941485627,0.021,4730.8,4730.7,5.12113]
[1755941485832,0.021,4730.8,4730.7,5.56413]
[1755941486032,0.021,4730.8,4730.7,5.12113]
[1755941486765,0.021,4730.8,4730.7,2.01113]
[1755941488156,0.021,4730.8,4730.7,9.22413]
[1755941493066,0.021,4730.8,4730.7,8.78113]
[1755941493343,0.021,4730.8,4730.7,9.22413]
[1755941497588,0.021,4730.8,4730.7,8.48443]
[1755941497757,0.021,4730.8,4730.7,9.22413]
[1755941499279,2.96259688,4733.6,4730.8,3.66]
[1755941499490,0.1056,4732.7,4731.0,0.66]
[1755941499685,0.1056,4732.7,4731.1,0.5618042]
[1755941499897,0.1056,4732.7,4732.0,0.1056]
[1755941500055,0.1056,4732.7,4732.1,0.1188042]
[1755941500252,0.1056,4732.7,4732.2,0.1188042]
[1755941500451,0.1056,4732.7,4732.3,0.1188042]
[1755941500682,0.1056,4732.7,4732.4,0.1188042]
[1755941500874,0.1056,4732.7,4732.5,0.1188042]
[1755941501071,0.1056,4732.7,4732.6,0.1188042]
[1755941501479,0.1056,4733.0,4732.6,0.1188042]
[1755941501679,0.1056,4733.0,4732.7,0.1188042]
[1755941501863,0.1056,4733.0,4732.8,0.1188042]
[1755941502186,0.1056,4733.0,4732.9,0.1188042]
[1755941503860,0.1056,4733.4,4732.9,0.1188042]
[1755941504059,0.02,4733.8,4733.0,0.1188042]
[1755941504364,0.02,4733.8,4733.1,0.1188042]
[1755941504580,0.02,4733.8,4733.2,0.1188042]
[1755941504782,0.02,4733.8,4733.3,0.1188042]
[1755941504958,0.02,4733.8,4733.4,0.1188042]
[1755941505159,0.02,4733.8,4733.5,0.1188042]
[1755941505354,0.02,4733.8,4733.6,0.1188042]
[1755941505570,0.02,4733.8,4733.7,0.1188042]
[1755941506090,0.1256,4733.8,4733.7,0.1188042]
[1755941507965,0.1266,4733.8,4733.7,0.1188042]
[1755941509087,3.1266,4733.8,4733.7,0.1188042]
[1755941510603,0.1266,4733.8,4733.7,0.1188042]
[1755941515293,0.1266,4733.8,4732.8,0.4797]
[1755941515612,0.1266,4733.8,4732.9,0.1189066]
[1755941515914,0.021,4733.8,4733.0,0.1189066]
[1755941516087,0.021,4733.8,4733.1,0.1189066]
[1755941516416,0.021,4733.8,4733.2,0.1189066]
[1755941516618,0.021,4733.8,4733.3,0.1189066]
[1755941516913,0.021,4733.8,4733.4,0.1189066]
[1755941517117,0.021,4733.8,4733.5,0.1189066]
[1755941517313,0.021,4733.8,4733.6,0.1189066]
[1755941517514,0.021,4733.8,4733.7,0.1189066]
[1755941517706,0.1266,4733.8,4733.7,0.1189066]
[1755941517902,0.2256,4733.8,4733.7,0.1189066]
[1755941518387,0.3272,4733.8,4733.7,0.1189066]
[1755941520535,0.2256,4733.8,4733.7,0.1189066]
[1755941521948,0.3272,4733.8,4733.7,0.1189066]
[1755941522123,3.3272,4733.8,4733.7,0.1189066]
[1755941522323,3.0,4733.7,4732.6,0.4597]
[1755941522531,0.1056,4732.7,4732.6,0.4597]
[1755941522738,0.2682,4732.7,4731.8,0.02]
[1755941522934,0.1056,4732.3,4731.8,0.02]
[1755941523241,0.1056,4732.3,4732.2,0.3005]
[1755941523856,0.1056,4732.3,4731.8,0.02]
[1755941524058,0.1056,4732.3,4731.9,0.4597]
[1755941524215,0.1056,4732.3,4732.2,0.3005]
[1755941524417,0.1056,4732.3,4732.2,0.7602]
[1755941524648,0.2046,4732.3,4732.0,0.004]
[1755941525444,0.1056,4732.8,4732.2,0.3005]
[1755941525843,0.1056,4732.8,4732.3,0.4597]
[1755941526057,0.1056,4732.8,4732.7,0.3005]
[1755941526217,0.1056,4732.8,4732.7,0.7602]
[1755941528158,8.99520238,4733.8,4732.7,0.8658]
[1755941528159,0.021,4733.8,4732.7,0.8658]
[1755941528462,0.021,4733.8,4732.8,0.4597]
[1755941528657,0.021,4733.8,4733.7,0.3005]
[1755941528863,0.021,4733.8,4732.8,0.4597]
[1755941529021,0.1056,4733.5,4732.8,0.5653]
[1755941529220,0.1056,4733.5,4733.4,0.3005]
[1755941529419,0.1056,4733.5,4733.4,0.7602]
[1755941529852,0.021,4733.8,4733.4,0.7602]
[1755941530050,0.021,4733.8,4733.5,0.4597]
[1755941530230,0.021,4733.8,4733.7,0.3005]
[1755941530644,0.021,4733.8,4733.7,0.7602]
[1755941532428,0.021,4733.8,4733.3,0.5653]
[1755941532764,0.021,4733.8,4733.4,0.4597]
[1755941532920,0.021,4733.8,4733.0,0.4597]
[1755941533253,0.1056,4733.5,4733.0,0.4597]
[1755941533418,0.1056,4733.5,4733.4,0.3005]
[1755941533814,0.1056,4733.5,4733.4,0.7602]
[1755941535448,0.021,4733.8,4733.4,0.7602]
[1755941535621,0.1056,4733.7,4733.4,0.3005]
[1755941535818,0.1056,4733.7,4733.5,0.4597]
[1755941536050,0.021,4733.8,4733.6,0.3005]
[1755941536258,0.021,4733.8,4733.6,0.7602]
[1755941536447,0.021,4733.8,4733.7,0.4597]
[1755941536639,0.021,4733.8,4733.7,0.7602]
[1755941541829,0.021,4733.8,4733.7,0.3005]
[1755941542155,0.021,4733.8,4733.4,0.4665]
[1755941542361,0.021,4733.8,4733.5,0.4665]
[1755941542724,0.021,4733.8,4733.7,0.2973]
[1755941543360,0.021,4733.8,4733.7,0.7638]
[1755941543866,0.021,4733.8,4733.3,0.4665]
[1755941544226,0.021,4733.8,4732.1,4.213]
[1755941544227,0.021,4733.8,4733.4,0.4665]
[1755941545354,0.021,4733.8,4733.1,0.4665]
[1755941545861,0.1216,4733.7,4733.1,0.4665]
[1755941546241,0.1216,4733.7,4733.6,0.2973]
[1755941546558,0.1216,4733.7,4733.6,0.7638]
[1755941547658,0.021,4733.8,4733.6,0.7638]
[1755941547847,0.021,4733.8,4733.6,0.2973]
[1755941548525,0.021,4733.8,4733.6,0.7638]
[1755941549061,0.1266,4733.8,4733.6,0.7638]
[1755941550231,0.1266,4733.8,4733.7,0.4665]
[1755941550432,0.1266,4733.8,4733.7,0.7638]
[1755941551665,0.1266,4733.8,4733.4,0.4665]
[1755941551834,0.1266,4733.8,4733.5,0.4665]
[1755941552030,0.1266,4733.8,4733.1,0.1056]
[1755941552250,0.1266,4733.8,4733.7,0.2973]
[1755941552652,0.1266,4733.8,4733.7,0.7638]
[1755941554151,0.76128,4733.8,4733.7,0.7638]
[1755941555263,0.92388,4733.8,4732.1,0.634679]
[1755941555561,0.1056,4733.5,4733.1,0.4665]
[1755941555766,0.1056,4733.5,4733.2,0.4665]
[1755941555941,0.1056,4733.5,4732.9,0.1056]
[1755941556265,0.1056,4733.5,4733.4,0.2973]
[1755941556661,0.1056,4733.5,4733.4,0.7638]
[1755941556835,0.4665,4733.5,4733.4,0.7638]
[1755941557755,0.1266,4733.8,4733.4,0.7638]
[1755941558064,0.63466,4733.7,4733.5,0.4665]
[1755941558265,0.63466,4733.7,4733.6,0.2973]
[1755941558467,0.63466,4733.7,4733.6,0.7638]
[1755941559542,0.021,4733.8,4733.6,0.8694]
[1755941559742,0.021,4733.8,4733.7,0.4665]
[1755941559971,0.021,4733.8,4733.7,0.7638]
[1755941561292,0.021,4733.8,4733.7,0.8694]
[1755941565045,0.021,4733.8,4733.7,0.4029]
[1755941565270,0.1276,4733.8,4733.7,0.4029]
[1755941565471,0.1276,4733.8,4733.7,0.8694]
[1755941567660,0.021,4733.8,4733.7,0.8694]
[1755941574495,0.021,4733.8,4733.7,0.4029]
[1755941574693,0.021,4733.8,4733.7,0.8655]
[1755941581487,0.021,4733.8,4733.7,0.4029]
[1755941581866,0.021,4733.8,4733.7,0.8655]
[1755941584864,0.12,4733.8,4732.6,0.4626]
[1755941585060,0.12,4733.8,4733.2,0.1056]
[1755941585288,0.12,4733.8,4732.9,0.1056]
[1755941585289,0.1056,4733.5,4732.9,0.1056]
[1755941585491,0.099,4733.0,4732.9,0.1056]
[1755941585795,0.1056,4733.5,4732.9,0.1056]
[1755941585995,0.4626,4733.1,4732.9,0.1056]
[1755941586497,0.4626,4733.1,4733.0,0.7567]
[1755941591700,0.5616,4733.1,4732.8,0.02]
[1755941593200,0.099,4733.1,4732.5,0.5682]
[1755941593382,0.5616,4733.0,4732.5,0.5682]
[1755941593701,0.5616,4733.0,4732.6,0.4626]
[1755941594197,0.5616,4733.0,4732.0,0.004]
[1755941594399,0.5616,4733.0,4732.2,0.4626]